Cogmind - Beta 10.2 @@@ ROGUE MODE // 2020.10.30 @ 06:06:16 Player: Wedge Result: Destroyed by as-58247 with Assembled Heavy Rifle Performance ------------- Evolutions (0) 0 Regions Visited (2) 400 Robots Destroyed (21) 105 Value Destroyed (373) 373 Prototype IDs (0) 0 Alien Tech Used (0) 0 Bonus (0) 0 TOTAL SCORE: 878 Bonus ------- None Cogmind --------- Core Integrity 0/250 Matter 300/300 Energy 100/100 System Corruption 0% Temperature Cool (0) Movement Walking (120) Location -10/Mines Parts ------- > --- POWER (1) -------- (None) > --- PROPULSION (2) --- Aluminum Leg > --- UTILITY (2) ------ Small Storage Unit > --- WEAPON (2) ------- Grenade Launcher > --- INVENTORY (6) ---- Ion Engine Aluminum Leg Heat Sink Light Assault Rifle Light Assault Rifle Grenade Launcher Peak State ------------ > --- POWER ------------ Ion Engine > --- PROPULSION ------- Aluminum Leg Aluminum Leg > --- UTILITY ---------- Heat Sink Small Storage Unit > --- WEAPON ----------- Light Assault Rifle Grenade Launcher > --- INVENTORY -------- Ion Engine Aluminum Leg Light Assault Rifle Light Assault Rifle Grenade Launcher [Rating: 7] Favorites ----------- Power Ion Engine Engine Ion Engine Propulsion Aluminum Leg Leg Aluminum Leg Utility Small Storage Unit Device Heat Sink Storage Small Storage Unit Protection Light Armor Plating Weapon Light Assault Rifle Ballistic Gun Light Assault Rifle Launcher Grenade Launcher Build | -11 -10 -10 ------- Run | Scr Mat Min Slots Evolved . | . . . Power . | . . . Propulsion . | . . . Utility . | . . . Weapon . | . . . Parts Attached 17 | 6 11 . Power 3 | 1 2 . Engine 3 | 1 2 . Core . | . . . Reactor . | . . . Propulsion 4 | 2 2 . Treads . | . . . Leg 4 | 2 2 . Wheel . | . . . Hover . | . . . Flight . | . . . Utility 3 | 1 2 . Device 1 | . 1 . Storage 1 | 1 . . Processor . | . . . Hackware . | . . . Protection 1 | . 1 . Artifact . | . . . Weapon 7 | 2 5 . Energy Gun . | . . . Energy Cannon . | . . . Ballistic Gun 4 | 2 2 . Ballistic Cannon . | . . . Launcher 3 | . 3 . Special Weapon . | . . . Impact Weapon . | . . . Slashing Weapon . | . . . Piercing Weapon . | . . . Special Melee Weapon . | . . . Unidentified Prototypes . | . . . Parts Lost 5 | . 1 4 Power 2 | . 1 1 Propulsion 1 | . . 1 Utility 1 | . . 1 Weapon 1 | . . 1 Highest Loss Streak 4 | . 1 4 Average Slot Usage (%) 88 | . 87 100 Engine 13 | . 13 14 Leg 27 | . 27 28 Storage 14 | . 14 14 Protection 3 | . 2 14 Ballistic Gun 21 | . 21 14 Launcher 6 | . 6 14 Naked Turns . | . . . Heaviest Build 16 | 9 16 16 Greatest Support 20 | 20 20 20 Greatest Overweight (x) 2 | 2 1 . Average Overweight (x) . | . . . Largest Inventory Capacity 6 | 6 6 6 Average Capacity 5 | 5 6 6 Most Carried 6 | 3 6 6 Average Carried 4 | 1 5 6 Final Capacity 6 | 6 6 6 Final Carried 6 | 1 6 6 Class Distribution -------------------- 100% | Mutant Dominant Class ---------------- Mutant | -10/Materials Mutant | -10/Mines Resources | -11 -10 -10 ----------- Run | Scr Mat Min Matter Collected 507 | 204 303 . Remotely . | . . . Salvage Created 531 | . 531 . Parts 29 | . 29 . Haulers Intercepted . | . . . Recyclers Shooed 1 | . 1 . Parts Field Recycled . | . . . Retrieved Matter . | . . . Parts Self-Destructed . | . . . Prevented . | . . . Kills | -11 -10 -10 ------- Run | Scr Mat Min Combat Hostiles Destroyed 16 | . 16 . Guns 10 | . 10 . AOE 6 | . 6 . Classes Destroyed 5 | . 5 . Worker 1 | . 1 . Recycler 2 | . 2 . Watcher 2 | . 2 . Swarmer 9 | . 9 . Grunt 7 | . 7 . Best Kill Streak 6 | . 6 . Combat Bots Only 3 | . 3 . Max Kills in Single Turn 2 | . 2 . Gunslinging . | . . . Exploded 2 | . 2 . Melee . | . . . Uniques/NPCs Destroyed . | . . . Combat | -11 -10 -10 -------- Run | Scr Mat Min Damage Taken 836 | . 424 412 Core 263 | . 140 123 Absorbed by Shields . | . . . Core Remaining (%) 100 | 100 . . Volleys Fired 57 | . 57 . Largest 2 | . 2 . Hottest 50 | . 50 . Shots Fired 105 | . 105 . Gun 99 | . 99 . Cannon . | . . . Launcher 6 | . 6 . Special . | . . . Kinetic 99 | . 99 . Thermal . | . . . Explosive 6 | . 6 . Electromagnetic . | . . . Robot Hit Streak 11 | . 11 . Robot Miss Streak 3 | . 3 . Penetration Max . | . . . Secondary Targets 1 | . 1 . Max Gunslinging Chain 1 | . 1 . Shots Hit Robots 66 | . 66 . Core Hits 37 | . 37 . Critical Hits . | . . . Critical Kills . | . . . Critical Parts Destroyed . | . . . Melee Attacks . | . . . Impact . | . . . Slashing . | . . . Piercing . | . . . Sneak Attacks . | . . . Combat Hostiles . | . . . Follow-up Attacks . | . . . Damage Inflicted 804 | . 801 3 Guns 461 | . 461 . Cannons . | . . . Explosions 336 | . 336 . Melee . | . . . Ramming 7 | . 4 3 Kinetic 461 | . 461 . Thermal . | . . . Explosive 336 | . 336 . Electromagnetic . | . . . Impact . | . . . Slashing . | . . . Piercing . | . . . Highest Corruption . | . . . Average Corruption . | . . . Corruption Purged . | . . . Overload Shots . | . . . Overflow Damage . | . . . Projectiles . | . . . Explosions . | . . . Melee . | . . . Knockbacks . | . . . Impact . | . . . Kinetic . | . . . Secondary . | . . . Self-Inflicted Damage 28 | . 27 1 Shots 1 | . 1 . Rammed 4 | . 1 3 Targets Rammed 4 | . 1 3 Kicked . | . . . Crushed . | . . . Highest Temperature 27 | . 27 . Average Temperature 9 | . 9 . Received Heat Transfer 86 | . 66 20 Siege Activations . | . . . Robots Corrupted . | . . . Combat Hostiles . | . . . Parts Fried . | . . . Impact Corruptions . | . . . Robots Melted . | . . . Combat Hostiles . | . . . Parts Melted . | . . . Heat Transferred . | . . . Parts Sabotaged . | . . . Parts Stolen . | . . . Parts Stripped . | . . . Power Chain Reactions . | . . . Missiles Intercepted . | . . . Alert | -11 -10 -10 ------- Run | Scr Mat Min Peak Influence 206 | . 206 45 Initial 5 | . . 5 Average 73 | . 82 16 Maximum Alert Level 1 | . 1 . Low Security (%) 98 | 100 98 100 Level 1 1 | . 1 . Level 2 . | . . . Level 3 . | . . . Level 4 . | . . . Level 5 . | . . . High Security . | . . . Max Security . | . . . Squads Dispatched 3 | . 3 . Investigation 2 | . 2 . Extermination . | . . . Reinforcement 1 | . 1 . Assault . | . . . Garrison . | . . . Intercept . | . . . Construction Impeded . | . . . Haulers Reinforced . | . . . Stealth | -11 -10 -10 --------- Run | Scr Mat Min Distress Signals 2 | . 2 . Communications Jammed . | . . . Distress Signals . | . . . Times Spotted 45 | . 24 21 Peak Tracking Total 16 | . 5 16 Tactical Retreats 1 | . 1 . Traps | -11 -10 -10 ------- Run | Scr Mat Min Traps Triggered . | . . . Indirectly . | . . . Trap Hack Attempts . | . . . Triggered . | . . . Disarmed . | . . . Reprogrammed . | . . . Reused . | . . . Traps Extracted . | . . . Installed . | . . . Triggered . | . . . Machines | -11 -10 -10 ---------- Run | Scr Mat Min Machines Disabled . | . . . Max in Single Turn . | . . . Machines Sabotaged . | . . . Garrisons Compromised . | . . . Overloaded Fab Kills . | . . . Fab Network Shutdowns . | . . . Hacking | -11 -10 -10 --------- Run | Scr Mat Min Machines Accessed 5 | . 5 . Terminals 5 | . 5 . Fabricators . | . . . Repair Stations . | . . . Recycling Units . | . . . Scanalyzers . | . . . Garrison Access . | . . . Total Hacks 18 | . 18 . Successful 10 | . 10 . Failed 8 | . 8 . Catastrophic 2 | . 2 . Database Lockouts . | . . . Manual 8 | . 8 . Terminals 18 | . 18 . Fabricators . | . . . Repair Stations . | . . . Recycling Units . | . . . Scanalyzers . | . . . Garrison Access . | . . . Terminal Hacks 10 | . 10 . Record 6 | . 6 . Alert Level 1 | . 1 . Unreport Threat 1 | . 1 . Locate Traps 2 | . 2 . Fabricator Hacks . | . . . Repair Station Hacks . | . . . Recycling Unit Hacks . | . . . Scanalyzer . | . . . Garrison Access Hacks . | . . . Unauthorized Hacks . | . . . Terminals . | . . . Fabricators . | . . . Repair Stations . | . . . Recycling Units . | . . . Scanalyzers . | . . . Garrison Access . | . . . Data Cores Recovered . | . . . Used . | . . . Hacking Detections 4 | . 4 . Full Trace Events 3 | . 3 . Feedback Events . | . . . Feedback Blocked . | . . . Robot Schematics Acquired . | . . . Robots Built . | . . . Matter . | . . . Time . | . . . Total Robot Build Rating . | . . . Part Schematics Acquired . | . . . Parts Built . | . . . Matter . | . . . Time . | . . . Total Part Build Rating . | . . . Parts Repaired . | . . . Time . | . . . Parts Recycled . | . . . Recycled Matter . | . . . Retrieved Matter . | . . . Retrieved Components . | . . . Parts Scanalyzed . | . . . Part Schematics Acquired . | . . . Parts Damaged . | . . . Bothacking | -11 -10 -10 ------------ Run | Scr Mat Min Used RIF Installer . | . . . Robots Hacked . | . . . Non-combat . | . . . Combat . | . . . Robot Hacks Applied . | . . . Relay Couplers Released . | . . . Robots Rewired . | . . . Allies Hacked . | . . . Hacks Repelled . | . . . Allies | -11 -10 -10 -------- Run | Scr Mat Min Total Allies . | . . . Largest Group . | . . . Highest-Rated Group . | . . . Highest-Rated Ally . | . . . Total Orders . | . . . Ally Attacks . | . . . Total Damage . | . . . Kills . | . . . Allies Corrupted . | . . . Allies Melted . | . . . Intel | -11 -10 -10 ------- Run | Scr Mat Min Robot Analysis Total . | . . . Derelict Logs Recovered . | . . . Drone Launches . | . . . Drone Recoveries . | . . . Exploration | -11 -10 -10 ------------- Run | Scr Mat Min Turns Passed 977 | 68 862 47 Spaces Moved 647 | 47 564 36 Core 14 | 14 . . Treads . | . . . Legs 633 | 33 564 36 Wheels . | . . . Hover . | . . . Flight . | . . . Fastest Speed 50 | 50 120 120 Average Speed 120 | 119 120 120 Slowest Speed 150 | 150 150 120 Overloaded Moves . | . . . Propulsion Burnouts . | . . . Robots Hopped . | . . . Cave-ins Triggered . | . . . Exploration Rate (%) 31 | 4 72 17 Regions Visited 2 Branch Regions 1 Pre-discovered Areas . | . . . Known Exits Taken . | . . . Unknown Exits Taken 2 | 1 1 . Scrap Searched . | . . . Spaces Dug . | . . . Terrain Destroyed 41 | . 41 . Melee . | . . . Projectile . | . . . AOE 41 | . 41 . Terrain Rammed . | . . . Walls Destroyed . | . . . Machines Disabled . | . . . Actions | -11 -10 -10 --------- Run | Scr Mat Min Total 763 | 59 665 39 Wait 12 | . 12 . Move 645 | 46 563 36 Hop . | . . . Pick Up 21 | 7 14 . Fast Attach . | . . . Attach 11 | 6 5 . Detach . | . . . Swap 6 | . 6 . Drop 7 | . 7 . Fire 57 | . 57 . Melee . | . . . Ram . | . . . Kick 4 | . 1 3 Crush . | . . . Escape Stasis . | . . . Rewire . | . . . Trap . | . . . Miscellaneous . | . . . Route ------- -11/Scrapyard -10/Materials (discovered 3 exits: [*Mat] / [*Min x2]) -10/Mines History --------- Turn | Location | Event 32 | -11/Scrapyard | Discovered new exit (range 12) 69 | -11/Scrapyard | Entered Materials 304 | -10/Materials | Build established: Mutant 335 | -10/Materials | Discovered new exit (range 16) 571 | -10/Materials | Discovered new exit (range 12) 792 | -10/Materials | Discovered new exit (range 16) 806 | -10/Materials | Core integrity fell below 50% 931 | -10/Materials | Entered Mines 947 | -10/Mines | Met a Derelict bent on vengeance 948 | -10/Mines | Assembled infested the area 976 | -10/Mines | Core integrity fell below 20% 978 | -10/Mines | Destroyed by as-58247 with Assembled Heavy Rifle Last Messages --------------- 00973_ as-84835 destroyed. 00973_ Lgt. Assault Rifle destroyed. 00973_ as-99131 destroyed. 00973_ as-19615 destroyed. 00973_ as-93618 destroyed. 00973_ as-60025 destroyed. 00974_ Ion Engine destroyed. 00975_ as-14521 destroyed. 00975_ as-30345 destroyed. 00975_ as-31061 destroyed. 00975_ Slammed into D-53 Grenadier. 00975_ D-53 Grenadier destroyed. 00975_ Aluminum Leg destroyed. 00975_ as-56952 destroyed. 00976_ Slammed into D-53 Grenadier. 00976_ Destabilizing: Core damaged (-2). 00977_ The unstable cave ceiling collapses. 00977_ Slammed into D-53 Grenadier. 00977_ as-62682 destroyed. 00977_ as-86519 destroyed. Map ----- +----------------------------------------------------+ | ?????????????????????????????????????????????????? | | ?????????????????????????????????????????????????? | | ?????????????????????????????????????????????????? | | ????????????????????????????????#????????????????? | | ??????????????????????????????? ????????????????? | | ??????????????????????????????? ????????????????? | | ??????????????????????????????? #????????????????? | | ?????????????????????????????## ##???####????????? | | ????????????????????????????? ???? #????????? | | ????????????????????????????? ???? ????????? | | ?????????????????????????????# #???# ?????????? | | ????????????????????????????## #### #??????????? | | ???????????????????????????## #???????????? | | ????????????????????????#### #????????????? | | ???????????????????????## #?????????????? | | ??????????????????????## #?????????????? | | ?????????????????????## #??????????????? | | ?????????????????????# ##??????????????? | | ?????????????????????# ## ##??????????????? | | ?????????????????????## #### ##?????????????? | | ??????????????????????## #??## #?????????????? | | ???????????????????????# #?# # #?????????????? | | ?????????????###???????# ## ##?????????????? | | ??????????? ## X ???## %a% ##??????????????? | | ????????? u ### #???????????????? | | ????????? r @ ###?????????????? | | ????????????????### d% a ??????? | | ??????????????????## ## a ??????? | | ???????????????????## ? ##### ??????? | | ????????????????????### #??????????????? | | ??????????????????????## a% ##??????????????? | | ???????????????????????#### #???????????????? | | ??????????????????????????# # #a#???????????????? | | ??????????????????????????###### ###?????????????? | | ???????????????????????????????# #?????????????? | | ???????????????????????????????# ????????? | | ???????????????????????????????#### " ???? | | ??????????????????????????????????? ??? | | ???????????????????????????????????? ??? | | ????????????????????????????????????? ???? | | ?????????????????????????????????????? ???? | | ??????????????????????????????????????? ???? | | ???????????????????????????????????????? ????? | | ???????????????????????????????????????? ###????? | | ?????????????????????????????????????????##??????? | | ?????????????????????????????????????????????????? | | ?????????????????????????????????????????????????? | | ?????????????????????????????????????????????????? | | | | | +----------------------------------------------------+ Best States ------------- Heat Dissipation 25 Energy Generation 10 Energy Capacity 250 Matter Stores 300 Matter Capacity 300 Sight Range 16 Terrain Scan Density 10 Armor Coverage 150 Evasion (%) 40 Item Schematics ----------------- None Robot Schematics ------------------ None Fabricated ------------ Nothing Alien Tech Used ----------------- None Achievements -------------- None Challenges ------------ None Game ------ Seed GuidedLinkedLauncher Manual? 0 Play Time 00:22:22 Cumulative 2.1 hours Start 2020.10.30 @ 05:38:04 End 2020.10.30 @ 06:06:16 Sessions 1 Manual Loads 0 Difficulty Rogue Special Mode None Game No. 4 Rogue 4 Adventurer 0 Explorer 0 Win Type - Total 0 Types 0/0/0/0/0/0/0/0/0 Lore% 1 Gallery% 4 Achievement% 5 Wizard Run 0 Options --------- ASCII 0 Keyboard 1 Movement Numpad Keybinds 0 Fullscreen 2 Font 18/SmallcapsGlow Map View 76x50 Tactical HUD 1 Map Filters NONE Filters LOW_CONTRAST(12,6,10) Steam 1 RUN: d8235205-f418-4114-87d5-7d542eca6efc